[Event "Silver Lake Festival 2022"]
[Site "Veliko Gradiste"]
[Date "2022.06.19"]
[Round "1.12"]
[White "Martic, Ivan"]
[Black "Hng, Mei-En Emmanuelle"]
[Result "1-0"]
[ECO "A61"]
[WhiteElo "2314"]
[BlackElo "2000"]
[Annotator "TA"]
[PlyCount "117"]
[EventDate "2022.06.16"]
[EventType "swiss"]
[EventCountry "SRB"]
[SourceTitle "playchess.com"]
[Source "ChessBase"]
[SourceQuality "1"]
[TimeControl "5400+30"]

{[%evp 21,117,63,94,84,75,95,106,98,102,90,100,91,96,105,95,95,129,120,121,122,120,62,62,71,105,92,143,172,208,202,252,172,165,164,176,159,207,198,200,115,185,150,124,124,212,203,245,231,313,307,589,302,318,317,304,291,319,313,318,327,319,272,291,117,247,265,375,405,534,235,231,229,568,549,627,486,483,447,547,354,292,197,329,74,109,72,175,0,79,87,29961,29958,5035,2877,29994,29995,29995,29996]} 1. d4 {[%emt 1:31:00]} Nf6 {[%emt 1:31:00]} 2. Nf3 {[%emt 0:00:30]} e6 {[%emt 0:00:30]} 3. c4 {[%emt 0:00:30]} c5 {[%emt 0:00:30]} 4. d5 {[%emt 0:00:30]} exd5 {[%emt 0:00:30]} 5. cxd5 {[%emt 0:00:30]} d6 {[%emt 0:00:30]} 6. Nc3 {[%emt 0:00:30]} g6 {[%emt 0:00:30]} 7. h3 {[%emt 0:00:30]} Bg7 {[%emt 0:00:30]} 8. Bf4 {[%emt 0:00:30]} O-O {[%emt 0:00:30]} 9. e3 {[%emt 0:00:30]} a6 {[%emt 0:00:30]} 10. a4 {[%emt 0:00:30]} Nh5 {[%emt 0:00:30]} 11. Bh2 {[%emt 0:00:30]} f5 {[%emt 0:00:30]} 12. Be2 {[%emt 0:00:30] A61: Modern Benoni: Nf3 without early e4.} Qe7 {[%emt 0:00:30]} 13. O-O {[%emt 0:00:30]} Nd7 {[%emt 0:00:30]} 14. Nd2 {[%emt 0:00:30][%cal Bf3d2,Bd2c4,Bc4b6][%mdl 32] White is better.} Nhf6 {[%emt 0:00:30]} 15. Nc4 {[%emt 0:00:30]} Ne8 {[%emt 0:00:30]} 16. a5 {[%emt 0:00:30]} Ne5 {[%emt 0:00:30]} 17. Nb6 $1 {[%emt 0:00:30]} Rb8 {[%emt 0:00:30]} 18. Rb1 {[%emt 0:00:30]} g5 {[%emt 0:00:30]} 19. Qd2 {[%emt 0:00:30] [#]} Qf6 $146 {[%emt 0:00:30]} ({Predecessor:} 19... g4 20. f4 gxf3 21. Bxf3 Nf6 22. Be2 Nfd7 23. Nca4 Nf6 24. Nc3 Nfd7 25. Nxc8 Rbxc8 {1-0 (64) Ma,Z (2485)-Du,C (2409) Liaocheng 2021}) 20. f4 $36 {[%emt 0:00:30][%mdl 2048] Black is under strong pressure.} gxf4 {[%emt 0:00:30]} 21. exf4 {[%emt 0:00:30]} (21. Rxf4 $16 Bh6 22. Rf2) 21... Nd7 $14 {[%emt 0:00:30]} 22. Nca4 {[%emt 0:00:30] 0x0.000bd732541fdp-1022s more active pieces. The black rooks are badly placed.} Nc7 {[%emt 0:00:30]} 23. b4 {[%emt 0:00:30]} Re8 {[%emt 0:00:30]} (23... Qd4+ $142 24. Qxd4 Bxd4+ 25. Kh1 Nb5) 24. Kh1 $1 $16 {[%emt 0:00:30]} Nxb6 {[%emt 0:00:30]} 25. Nxb6 {[%emt 0:00:30]} ({Don't do} 25. axb6 $6 Nb5 $16) 25... Qd4 {[%emt 0:00:30]} 26. Qxd4 {[%emt 0:00:30]} Bxd4 {[%emt 0:00:30]} 27. Bh5 {[%emt 0:00:30]} Rd8 {[%emt 0:00:30]} 28. Bg1 {[%emt 0:00:30]} Nb5 {[%emt 0:00:30]} (28... Bd7 $16 29. Rfe1 Bb5) 29. Bxd4 $18 {[%emt 0:00:30]} cxd4 {[%emt 0:00:30]} 30. Rbe1 {[%emt 0:00:30]} (30. Rbd1 $1 $18) 30... Kf8 {[%emt 0:00:30]} (30... Bd7 $16 {is a better defense.}) 31. Be2 {[%emt 0:00:30] Strongly threatening Bxb5.} Nc3 {[%emt 0:00:30]} 32. Bd3 {[%emt 0:00:30]} Kf7 {[%emt 0:00:30]} (32... h5 $16 {was called for.} 33. Rf2 Bd7) 33. Kh2 {[%emt 0:00:30]} Kf6 {[%emt 0:00:30]} 34. Rf2 {[%emt 0:00:30]} Bd7 {[%emt 0:00:30]} 35. Rd2 {[%emt 0:00:30]} Nb5 $2 {[%emt 0:00:30]} (35... Ne4) 36. Nxd7+ {[%emt 0:00:30]} Rxd7 {[%emt 0:00:30]} 37. Re6+ {[%emt 0:00:30]} Kg7 {[%emt 0:00:30]} 38. Bxf5 {[%emt 0:00:30]} Rf8 {[%emt 0:00:30]} 39. g4 {[%emt 0:00:30][%cal Bg2g4,Bg4g5][%mdl 32]} Rc7 {[%emt 0:00:30]} 40. Kg3 {[%emt 0:00:30]} Rc3+ {[%emt 0:00:30]} 41. Kh4 {[%emt 0:00:30]} Rf7 {[%emt 0:00:30]} 42. Re4 {[%emt 0:00:30]} (42. Bd3 $18) 42... Rb3 {[%emt 0:00:30] [#]} (42... Re3 $16) 43. Be6 $1 {[%emt 0:00:30]} Rc7 {[%emt 0:00:30]} (43... Re3 $142) 44. g5 {[%emt 0:00:30]} h6 {[%emt 0:00:30]} 45. Rg2 {[%emt 0:00:30]} (45. f5 $142) 45... Re3 {[%emt 0:00:30]} 46. Bf5 {[%emt 0:00:30]} Rxe4 $2 {[%emt 0:00:30]} (46... hxg5+ {is a better chance.} 47. Rxg5+ (47. Kxg5 Rcc3 $16) 47... Kf8) 47. gxh6+ {[%emt 0:00:30]} (47. Bxe4 hxg5+ 48. Kxg5 (48. Rxg5+ Kf7 $16) 48... Nc3 $16) 47... Kxh6 {[%emt 0:00:30]} 48. Rg6+ {[%emt 0:00:30]} Kh7 {[%emt 0:00:30]} 49. Bxe4 {[%emt 0:00:30][%mdl 4096] Endgame KRB-KRN} ({Weaker is} 49. Rxd6+ Kg7 50. Rg6+ Kf8 51. Bxe4 Nc3 $16) 49... Kh8 {[%emt 0:00:30]} 50. Rh6+ {[%emt 0:00:30]} Kg8 {[%emt 0:00:30]} 51. Kg5 {[%emt 0:00:30] Hoping for Bd3.} Nc3 {[%emt 0:00:30]} (51... Rg7+ $142 52. Kh4 Rg1) 52. Bf5 $2 {[%emt 0:00:30]} (52. Re6 $18 {and White stays clearly on top.}) 52... Rg7+ $16 {[%emt 0:00:30]} 53. Kf6 {[%emt 0:00:30] Intending Be6+ and mate.} Rf7+ {[%emt 0:00:30]} (53... Nxd5+ $16 {was worth a try.} 54. Ke6 Nxb4) 54. Kg5 {[%emt 0:00:30]} (54. Ke6 $18 {and the rest is easy.}) 54... Rg7+ {[%emt 0:00:30] [#]} 55. Kh4 $1 {[%emt 0:00:30] Threatens to win with Be6+.} Na2 $2 {[%emt 0:00:30][%mdl 8192]} (55... Rf7 $16 56. Bd3 Na2) 56. Be6+ {[%emt 0:00:30]} Kf8 57. f5 {[%emt 0:00:30][%cal Bf4f5,Bf5f6,Bf6f7][%mdl 32] White wants to mate with f6.} d3 {[%emt 0:01:00]} 58. f6 {[%emt 0:00:30]} Rg8 {[%emt 0:00:30]} 59. f7 {[%emt 0:00:30] Weighted Error Value: White=0.40/Black=0.77} 1-0

[Event "Silver Lake Festival 2022"]
[Site "Veliko Gradiste"]
[Date "2022.06.20"]
[Round "2.1"]
[White "Zanan, Evgeny"]
[Black "Govedarica, Radovan"]
[Result "1-0"]
[ECO "D52"]
[WhiteElo "2534"]
[BlackElo "2289"]
[Annotator "TA"]
[PlyCount "77"]
[EventDate "2022.06.16"]
[EventType "swiss"]
[EventCountry "SRB"]
[SourceTitle "playchess.com"]
[Source "ChessBase"]
[SourceQuality "1"]
[TimeControl "5400+30"]

{[%evp 18,77,28,28,57,54,57,55,55,57,54,52,62,54,59,11,48,43,69,55,49,62,64,66,60,53,65,62,78,83,81,86,85,71,75,67,99,96,96,67,93,95,120,99,109,79,287,278,278,275,521,411,755,728,819,678,682,650,689,655,4025,3028]} 1. d4 {[%emt 0:05:20]} Nf6 {[%emt 0:00:06]} 2. c4 {[%emt 0:00:05]} e6 {[%emt 0:00:04]} 3. Nf3 {[%emt 0:00:03]} d5 {[%emt 0:00:33]} 4. Nc3 {[%emt 0:00:13]} c6 {[%emt 0:00:19]} 5. Bg5 {[%emt 0:01:17]} Nbd7 {[%emt 0:01:45]} 6. e3 {[%emt 0:01:34]} Bb4 {[%emt 0:00:47]} 7. Qc2 {[%emt 0:17:19]} Qa5 {[%emt 0:00:39]} 8. Nd2 {[%emt 0:04:54]} dxc4 {[%emt 0:01:28]} 9. Bxf6 {[%emt 0:00:13]} Nxf6 {[%emt 0:00:07]} 10. Nxc4 {[%emt 0:00:08] Pair of Knights!} Qd8 {[%emt 0:05:23] D52: Queen's Gambit Declined: Cambridge Springs Variation.} 11. a3 {[%emt 0:01:20]} Be7 {[%emt 0:00:22]} 12. g3 {[%emt 0:03:13]} O-O {[%emt 0:00:08] White is slightly better.} 13. Bg2 {[%emt 0:00:04]} Bd7 {[%emt 0:12:52]} 14. O-O {[%emt 0:01:42] [#]} Rc8 $146 {[%emt 0:01:15]} ({Predecessor:} 14... a5 15. Ne5 Be8 16. Rfd1 Nd7 17. Nd3 Qb6 18. b4 Nf6 19. Na4 Qa7 20. Qb2 Rb8 {½-½ (65) Potomak,V (2222)-Kaminsky,R (2108) Czech Republic 2012}) 15. b4 {[%emt 0:02:36]} Qc7 {[%emt 0:02:15]} 16. Qb3 {[%emt 0:05:49]} (16. Rfd1 $14) 16... Rfd8 {[%emt 0:01:45][%cal Oc6c5]} 17. Rac1 {[%emt 0:01:08]} Qb8 {[%emt 0:00:20]} 18. Ne5 {[%emt 0:06:42]} Be8 {[%emt 0:00:07]} 19. Ne4 {[%emt 0:05:37]} Nxe4 {[%emt 0:02:02]} 20. Bxe4 {[%emt 0:00:06]} g6 {[%emt 0:07:04]} 21. Kg2 {[%emt 0:09:24]} Kg7 {[%emt 0:00:42]} 22. h4 {[%emt 0:01:29]} h5 {[%emt 0:01:19]} 23. Rc2 {[%emt 0:00:29]} Qd6 {[%emt 0:11:10]} 24. Rfc1 {[%emt 0:02:07]} Ra8 {[%emt 0:03:36]} 25. Nc4 {[%emt 0:01:36]} Qc7 {[%emt 0:03:35]} 26. a4 {[%emt 0:02:21][%cal Ba3a4,Ba4a5][%mdl 32]} a6 {[%emt 0:03:33]} 27. a5 {[%emt 0:04:39]} Rab8 {[%emt 0:00:51]} 28. Ne5 {[%emt 0:01:44][%cal Bc4e5,Be5d3,Bd3f4][%mdl 32]} Qd6 {[%emt 0:01:21]} 29. Nd3 {[%emt 0:00:20] 0x0.00207be0e97adp-1022s more active pieces.} Bf6 {[%emt 0:07:57]} 30. Rc5 {[%emt 0:00:50] Against e5} Qf8 {[%emt 0:00:59]} 31. Nf4 {[%emt 0:01:59][%cal Oe4g6] Threatens to win with Bxg6!} Be7 $2 {[%emt 0:02:29] [#] This costs Black the game.} (31... Qe7 $16 {was called for.}) 32. Bxg6 $1 $18 {[%emt 0:01:13][%cal Oc5h5,Be4g6,Bg6h5,Bh5g4][%mdl 544]} Bxc5 {[%emt 0:00:18]} 33. Rxc5 {[%emt 0:00:24]} (33. bxc5 $6 Qe7 $16) 33... Kf6 $2 {[%emt 0:05:13]} (33... Rd5 34. Nxd5 (34. Bxh5 Rxc5 35. bxc5 Qe7 $16) 34... exd5) 34. Bxh5 {[%emt 0:01:10]} Qd6 {[%emt 0:01:36]} (34... Ke7 $142 35. Rg5 Kd7) 35. Qc2 {[%emt 0:05:30] White is clearly winning.} Qf8 {[%emt 0:02:41]} 36. Qe4 {[%emt 0:01:39]} Ke7 {[%emt 0:00:33]} 37. Bg4 {[%emt 0:01:15]} ({Not} 37. Qe5 Rd6 38. g4 f6 $18) 37... Rd6 {[%emt 0:00:27]} 38. Qh7 {[%emt 0:03:22] [#] Prevents Qg7. Strongly threatening Ng6+.} ({Weaker is} 38. Qe5 f6 39. Qe4 (39. Nxe6 fxe5 40. Nxf8 Kxf8 $15) 39... Bf7 $18) 38... Bd7 {[%emt 0:03:13]} 39. Ng6+ {[%emt 0:00:08] Weighted Error Value: White=0.16 (very precise) /Black=0.37} 1-0

[Event "Silver Lake Festival 2022"]
[Site "Veliko Gradiste"]
[Date "2022.06.20"]
[Round "2.2"]
[White "Manakova, Maria"]
[Black "Strikovic, Aleksa"]
[Result "0-1"]
[ECO "B07"]
[WhiteElo "2278"]
[BlackElo "2502"]
[Annotator "TA"]
[PlyCount "86"]
[EventDate "2022.06.16"]
[EventType "swiss"]
[EventCountry "SRB"]
[SourceTitle "playchess.com"]
[Source "ChessBase"]
[SourceQuality "1"]
[TimeControl "5400+30"]

{[%evp 13,86,35,44,33,33,36,45,23,26,0,16,-18,30,30,29,29,31,33,38,13,7,8,21,20,26,29,92,77,83,84,91,88,76,31,26,27,31,20,21,27,23,1,25,0,0,0,8,0,0,0,0,0,0,0,0,0,0,0,0,0,0,0,0,0,2,2,16,5,8,0,0,0,0,0,0]} 1. e4 {[%emt 0:09:53]} d6 {[%emt 0:00:11]} 2. d4 {[%emt 0:00:09]} Nf6 {[%emt 0:00:07]} 3. Nc3 {[%emt 0:00:12]} e5 {[%emt 0:00:07]} 4. dxe5 {[%emt 0:01:22]} dxe5 {[%emt 0:00:06]} 5. Qxd8+ {[%emt 0:00:03]} Kxd8 {[%emt 0:00:07]} 6. Bc4 {[%emt 0:00:09]} Ke8 $1 {[%emt 0:00:12][%mdl 4] is more profitable than 6...Be6 at the moment.} 7. Nf3 {[%emt 0:00:32]} Bd6 {[%emt 0:00:09]} 8. h3 {[%emt 0:02:31] B07: Pirc Defence: Miscellaneous Systems.} a6 {[%emt 0:07:13]} 9. a4 {[%emt 0:01:22]} b6 {[%emt 0:00:05] [#]} 10. Ng5 $146 {[%emt 0:02:46] White is slightly better.} ({Predecessor:} 10. Be3 Bb7 11. Nd2 Nbd7 12. g4 Bb4 13. f3 Bxc3 14. bxc3 Ke7 15. Ke2 Ne8 16. Rhb1 {1-0 (64) Ciorgovean,I (2276)-Gallego Alcaraz,A (2523) Bucharest 2022}) 10... Rf8 {[%emt 0:00:12]} 11. Nd5 {[%emt 0:00:06]} Nbd7 {[%emt 0:00:49]} 12. f4 {[%emt 0:25:53]} exf4 {[%emt 0:43:09]} (12... Nh5 $142) 13. Bxf4 $11 {[%emt 0:03:11]} Bxf4 {[%emt 0:02:33]} 14. Nxf4 {[%emt 0:00:07][%cal Oe4e5]} Ne5 {[%emt 0:01:27]} 15. Bb3 {[%emt 0:01:25]} Bb7 {[%emt 0:05:08]} 16. O-O-O {[%emt 0:13:32]} Rd8 {[%emt 0:01:04]} 17. Nd5 {[%emt 0:01:09]} Bxd5 {[%emt 0:00:39]} 18. exd5 {[%emt 0:00:13] Hoping for Rhe1.} Kd7 {[%emt 0:00:12]} 19. Rhe1 {[%emt 0:01:56]} Rde8 {[%emt 0:00:48] [#]} (19... Kd6 $11 {remains equal.}) 20. Ne6 $1 $16 {[%emt 0:02:09]} fxe6 {[%emt 0:04:30]} 21. dxe6+ {[%emt 0:00:25]} Ke7 {[%emt 0:00:01] And now ...Ng6 would win.} 22. Rxe5 {[%emt 0:00:07]} Rd8 {[%emt 0:00:04]} 23. Bc4 {[%emt 0:07:33]} (23. Rf1 {is more complex.} Ng4 24. Rxf8 Nxe5 25. Rxd8 Kxd8 26. Kd2) 23... Rxd1+ {[%emt 0:12:51]} 24. Kxd1 $14 {[%emt 0:00:14][%mdl 4096] Endgame KRB-KRN} a5 {[%emt 0:00:02]} 25. c3 {[%emt 0:00:24]} Ne8 {[%emt 0:00:14]} 26. Ke2 {[%emt 0:02:32]} Nd6 {[%emt 0:00:22]} 27. Bb3 {[%emt 0:01:54]} Rf6 {[%emt 0:04:40]} 28. g4 {[%emt 0:05:39]} Rf4 {[%emt 0:06:01] The position is equal.} 29. Bc2 {[%emt 0:09:49]} g6 {[%emt 0:01:29]} 30. Bb3 {[%emt 0:04:18]} c6 {[%emt 0:07:09]} 31. Re3 {[%emt 0:01:21]} Ne4 {[%emt 0:00:09]} 32. Bc2 {[%emt 0:02:03]} Rf2+ {[%emt 0:00:12]} 33. Kd1 {[%emt 0:00:02]} Nd6 {[%emt 0:00:57]} 34. b3 {[%emt 0:00:25]} Rh2 {[%emt 0:01:34]} 35. Bd3 {[%emt 0:01:17]} Ne8 {[%emt 0:02:05]} 36. Be4 {[%emt 0:00:13]} c5 {[%emt 0:00:59]} 37. Bd5 {[%emt 0:00:07]} Nd6 {[%emt 0:00:02]} 38. c4 {[%emt 0:00:38]} g5 {[%emt 0:01:05]} 39. Ke1 {[%emt 0:00:13]} Ne8 {[%emt 0:00:14]} 40. Kf1 {[%emt 0:00:49] [#] Threatens to win with Bg2.} Rd2 {[%emt 0:00:07]} 41. Re5 {[%emt 0:00:27]} h6 {[%emt 0:00:14]} 42. h4 {[%emt 0:00:44]} Nf6 {[%emt 0:01:08]} 43. hxg5 {[%emt 0:01:11]} Nxg4 {[%emt 0:00:02][%mdl 32768] Weighted Error Value: White=0.07 (flawless) /Black=0.05 (flawless) . Loss on time!?} 0-1

[Event "Silver Lake Festival 2022"]
[Site "Veliko Gradiste"]
[Date "2022.06.20"]
[Round "2.3"]
[White "Stremavicius, Titas"]
[Black "Djokic, Mihailo"]
[Result "1-0"]
[ECO "E14"]
[WhiteElo "2508"]
[BlackElo "2194"]
[Annotator "TA"]
[PlyCount "95"]
[EventDate "2022.06.16"]
[EventType "swiss"]
[EventCountry "SRB"]
[SourceTitle "playchess.com"]
[Source "ChessBase"]
[SourceQuality "1"]
[TimeControl "5400+30"]

{[%evp 18,95,19,12,26,29,33,40,37,29,24,22,43,50,52,39,53,46,47,39,46,42,37,48,51,30,59,59,87,67,87,68,75,75,83,84,88,94,96,85,89,98,125,114,137,137,137,137,135,138,139,114,162,162,166,166,158,150,270,271,254,242,284,286,294,285,274,277,264,262,332,258,333,313,768,757,779,1181,963,991]} 1. d4 {[%emt 0:02:26]} Nf6 {[%emt 0:00:10]} 2. c4 {[%emt 0:00:05]} e6 {[%emt 0:00:07]} 3. Nf3 {[%emt 0:00:54]} b6 {[%emt 0:00:05]} 4. e3 {[%emt 0:00:23]} Bb7 {[%emt 0:00:43]} 5. Bd3 {[%emt 0:00:09]} Be7 {[%emt 0:06:48]} 6. O-O {[%emt 0:00:57]} O-O {[%emt 0:03:14]} 7. b3 {[%emt 0:08:04]} Ne4 {[%emt 0:06:04]} 8. Qc2 {[%emt 0:06:37]} f5 {[%emt 0:02:46]} 9. Nfd2 {[%emt 0:00:08]} Nxd2 {[%emt 0:13:08]} 10. Nxd2 {[%emt 0:00:29]} Nc6 {[%emt 0:00:10] E14: Queen's Indian: Classical Variation (4 e3).} 11. a3 {[%emt 0:00:27] Prevents Nb4.} Bf6 {[%emt 0:01:48]} 12. Bb2 {[%emt 0:00:12] [#]} g6 $146 {[%emt 0:05:10] White is slightly better.} ({Predecessor:} 12... Qe8 13. b4 Qg6 14. f3 Bg5 15. f4 Bxf4 16. Rf3 Bxe3+ 17. Rxe3 Nxd4 18. Rg3 Qxg3 19. hxg3 Nxc2 20. Bxc2 {½-½ (29) Genc,A (1734)-Akin,Y (1861) Ankara 2020}) 13. Nf3 {[%emt 0:09:25]} Qe7 {[%emt 0:04:49]} 14. e4 {[%emt 0:02:16]} fxe4 {[%emt 0:01:53]} 15. Bxe4 {[%emt 0:00:05]} Qg7 {[%emt 0:00:10]} 16. Rab1 {[%emt 0:02:49]} Rae8 {[%emt 0:05:36]} 17. Rfe1 {[%emt 0:06:31]} Nd8 {[%emt 0:06:56]} 18. Ne5 {[%emt 0:04:12]} d6 {[%emt 0:04:31]} 19. Bxb7 {[%emt 0:02:04]} Nxb7 {[%emt 0:01:28]} 20. Nf3 {[%emt 0:00:15]} Re7 {[%emt 0:05:38]} 21. Re2 {[%emt 0:00:58]} Rfe8 {[%emt 0:00:37]} 22. Rbe1 {[%emt 0:00:56]} c6 {[%emt 0:02:35]} 23. h4 {[%emt 0:03:29]} Nd8 {[%emt 0:07:13]} 24. Qd3 {[%emt 0:04:19]} Qh6 {[%emt 0:03:43]} 25. Qe4 {[%emt 0:03:32]} Rf8 {[%emt 0:07:04]} 26. Qg4 {[%emt 0:01:00]} Qh5 {[%emt 0:00:27]} 27. Qxh5 {[%emt 0:04:02]} gxh5 {[%emt 0:00:01]} 28. Bc1 {[%emt 0:00:11]} c5 {[%emt 0:02:41]} 29. d5 {[%emt 0:03:53]} e5 {[%emt 0:01:26]} 30. g3 {[%emt 0:00:47]} Rd7 {[%emt 0:01:56] [#]} 31. Nd2 $1 {[%emt 0:00:50]} Nb7 {[%emt 0:00:58]} 32. Ne4 {[%emt 0:00:41]} Bg7 {[%emt 0:00:08]} 33. Kg2 {[%emt 0:00:56]} Na5 {[%emt 0:00:32]} 34. Rb2 {[%emt 0:00:14]} h6 {[%emt 0:01:13]} (34... Kf7 $16 35. Rb1 Nb7 36. Ng5+ Kg8) 35. Bd2 $18 {[%emt 0:01:53]} Nb7 {[%emt 0:00:09]} 36. Rc2 {[%emt 0:01:40]} Kh7 {[%emt 0:00:23]} 37. b4 {[%emt 0:03:01] White is more active.} cxb4 {[%emt 0:00:07]} (37... Kg6 $16 38. f3 Kh7) 38. axb4 {[%emt 0:00:06]} Rc8 {[%emt 0:00:18]} 39. Be3 {[%emt 0:01:34]} Kg6 {[%emt 0:01:05]} 40. Ra1 {[%emt 0:01:59][%cal Be1a1,Ba1a6,Ba6a7][%mdl 32]} Nd8 {[%emt 0:00:33]} 41. Kf3 {[%emt 0:00:28][%cal Bg2f3,Bf3e2,Be2d3][%mdl 32]} Bf8 {[%emt 0:00:51]} 42. Ke2 {[%emt 0:00:18]} Nf7 {[%emt 0:03:33]} 43. Kd3 {[%emt 0:00:09]} Rdc7 {[%emt 0:02:38]} 44. Ra6 {[%emt 0:00:35]} Kf5 {[%emt 0:00:33]} 45. f3 {[%emt 0:00:46]} Be7 $2 {[%emt 0:00:08] [#]} (45... Kg6 46. c5 dxc5) 46. Rca2 {[%emt 0:00:53] White is clearly winning.} Ra8 {[%emt 0:00:52]} 47. Bxb6 {[%emt 0:00:20]} Rb7 {[%emt 0:00:07]} 48. Rxa7 {[%emt 0:00:18] Weighted Error Value: White=0.07 (flawless) /Black=0.18 (very precise)} 1-0

[Event "Silver Lake Festival 2022"]
[Site "Veliko Gradiste"]
[Date "2022.06.20"]
[Round "2.4"]
[White "Ojas Kulkarni"]
[Black "Ramoutar, Alan-Safar"]
[Result "0-1"]
[ECO "B13"]
[WhiteElo "2235"]
[BlackElo "2477"]
[Annotator "TA"]
[PlyCount "50"]
[EventDate "2022.06.16"]
[EventType "swiss"]
[EventCountry "SRB"]
[SourceTitle "playchess.com"]
[Source "ChessBase"]
[SourceQuality "1"]
[TimeControl "5400+30"]

{[%evp 12,50,0,0,0,0,0,0,0,4,20,23,25,19,3,11,27,-34,-33,-39,-32,-38,-45,-76,-63,-120,-108,-80,-27,-225,-232,-225,-225,-235,-225,-235,-219,-213,-217,-315,-309]} 1. e4 {[%emt 0:00:04]} c6 {[%emt 0:00:12]} 2. d4 {[%emt 0:00:19]} d5 {[%emt 0:00:10]} 3. exd5 {[%emt 0:00:27]} cxd5 {[%emt 0:00:09]} 4. c4 {[%emt 0:00:05]} Nf6 {[%emt 0:00:22]} 5. Nc3 {[%emt 0:00:07]} Nc6 {[%emt 0:00:14]} 6. Bg5 {[%emt 0:00:19]} dxc4 {[%emt 0:02:32]} 7. Bxc4 {[%emt 0:00:12] The main line 7.Bxc4 scores better than 7.d5.} h6 {[%emt 0:00:37] B13: Caro-Kann: Exchange Variation and Panov-Botvinnik Attack.} 8. Bh4 {[%emt 0:06:44]} Qxd4 {[%emt 0:04:17]} 9. Qxd4 {[%emt 0:00:06]} Nxd4 {[%emt 0:00:05] The position is equal.} 10. O-O-O {[%emt 0:00:06][%cal Ba1d1,Bd1d4,Bd4h4][%mdl 32] Inhibits Nc2.} g5 {[%emt 0:03:19]} (10... e5 $5 {[%cal Rc8g4]}) 11. Rxd4 {[%emt 0:12:51]} gxh4 {[%emt 0:00:38]} 12. Nb5 {[%emt 0:00:22][%cal Rb5c7]} e5 {[%emt 0:00:17] [#]} 13. Rxh4 $146 {[%emt 0:00:21] Strongly threatening Nc7+.} ({Predecessor:} 13. Nc7+ Ke7 14. Rxh4 Rb8 15. Nf3 e4 16. Ne5 Bg7 17. Rd1 Bf5 18. Rf4 Rhc8 19. Rxf5 Rxc7 20. Kb1 Rf8 21. Ng6+ {1-0 (21) Yan,T (2240)-Girya,O (2488) China 2019}) 13... Bc5 {[%emt 0:04:52]} 14. Nc7+ {[%emt 0:23:22]} (14. Nf3 $1 $11) 14... Ke7 $15 {[%emt 0:00:15][%cal Oc5f2]} 15. Nxa8 {[%emt 0:00:06]} Bxf2 {[%emt 0:01:35]} 16. g3 {[%emt 0:03:11] And now Nf3 would win.} Be3+ {[%emt 0:15:00]} 17. Kd1 {[%emt 0:00:44] Black must now prevent Nf3.} Bg5 $36 {[%emt 0:22:43][%mdl 2048] White is under pressure. This bishop pair is nice.} (17... Bg4+ 18. Be2 Be6 19. Bc4 $1 (19. Nc7 Rc8 $15) 19... Bg4+ 20. Be2 $11) 18. Nc7 {[%emt 0:01:45]} Bxh4 $17 {[%emt 0:09:23]} 19. gxh4 {[%emt 0:00:19] [#]} Bf5 {[%emt 0:02:24]} (19... b5 $1 $17 {aiming for ...Bb7.} 20. Be2 (20. Nxb5 $2 Bb7 $19) 20... Bb7) 20. Be2 $2 {[%emt 0:09:18] This costs White the game.} (20. Nf3 $11 {and White has nothing to worry.} Rc8 21. Nxe5 (21. Nd5+ $2 Nxd5 22. Bxd5 Rd8 $19) 21... Rxc7 22. Re1) 20... Rd8+ $19 {[%emt 0:06:53]} 21. Ke1 {[%emt 0:00:27]} Rc8 {[%emt 0:05:00]} 22. Nf3 {[%emt 0:16:15]} ({Wrong is} 22. Nb5 $2 Be4 23. Nh3 Bxh1 $19) 22... Be4 {[%emt 0:04:26]} ({Weaker is} 22... Rxc7 23. Nxe5 Rc1+ 24. Bd1) 23. Rf1 {[%emt 0:00:43]} Bxf3 {[%emt 0:00:42]} ({Inferior is} 23... Rxc7 24. Nxe5 Rc1+ 25. Bd1 $17) 24. Rxf3 {[%emt 0:02:44] Threatens to win with Rc3.} Rxc7 {[%emt 0:00:02]} 25. b3 {[%emt 0:00:16]} (25. Bd1 {was worth a try.}) 25... Ne4 {[%emt 0:06:36] Weighted Error Value: White=0.35/Black=0.05 (flawless)} 0-1